[Event "Championnat du monde jeunes U10"]
[Date "2024.11.24"]
[White "Kais, Kristofer"]
[Black "Ivanovic, Leonid"]
[WhiteElo "1723"]
[BlackElo "1990"]
[Round "9.35"]
[Result "0-1"]
[TimeControl "5400+30"]

1. d4 {[%clk 1:30:52]} 1... Nf6 {[%clk 1:30:57]} 2. Bf4 {[%clk 1:31:14]} 2... d5
{[%clk 1:30:57]} 3. e3 {[%clk 1:31:36]} 3... c5 {[%clk 1:30:52]} 4. c3 {[%clk
1:31:55]} 4... Nc6 {[%clk 1:30:37]} 5. Nd2 {[%clk 1:31:58]} 5... e6 {[%clk
1:30:18]} 6. Ngf3 {[%clk 1:31:55]} 6... Bd6 {[%clk 1:30:20]} 7. Ne5 {[%clk
1:31:50]} 7... O-O {[%clk 1:29:56]} 8. Bd3 {[%clk 1:32:02]} 8... Qc7 {[%clk
1:29:42]} 9. Ndf3 {[%clk 1:32:09]} 9... b6 {[%clk 1:27:18]} 10. O-O {[%clk
1:31:28]} 10... Bb7 {[%clk 1:27:33]} 11. Qe2 {[%clk 1:22:41]} 11... Ne4 {[%clk
1:21:53]} 12. Rad1 {[%clk 1:17:36]} 12... f6 {[%clk 1:18:03]} 13. Nxc6 {[%clk
1:17:07]} 13... Bxc6 {[%clk 1:18:20]} 14. Bxd6 {[%clk 1:10:37]} 14... Nxd6
{[%clk 1:18:05]} 15. Nd2 {[%clk 1:06:22]} 15... Rae8 {[%clk 1:00:46]} 16. e4
{[%clk 0:52:21]} 16... cxd4 {[%clk 0:52:46]} 17. cxd4 {[%clk 0:51:54]} 17...
dxe4 {[%clk 0:42:25]} 18. Nxe4 {[%clk 0:51:41]} 18... Qd7 {[%clk 0:41:44]} 19.
Nxd6 {[%clk 0:45:02]} 19... Qxd6 {[%clk 0:42:11]} 20. Be4 {[%clk 0:40:00]} 20...
Bd5 {[%clk 0:37:17]} 21. Rfe1 {[%clk 0:34:02]} 21... Re7 {[%clk 0:29:03]} 22. b3
{[%clk 0:25:18]} 22... Rc8 {[%clk 0:20:22]} 23. Rc1 {[%clk 0:17:45]} 23... Rec7
{[%clk 0:18:35]} 24. Rxc7 {[%clk 0:15:20]} 24... Rxc7 {[%clk 0:18:47]} 25. h3
{[%clk 0:10:49]} 25... Rc6 {[%clk 0:15:01]} 26. Bxd5 {[%clk 0:08:53]} 26... Qxd5
{[%clk 0:14:16]} 27. Qe4 {[%clk 0:05:22]} 27... Qxe4 {[%clk 0:13:42]} 28. Rxe4
{[%clk 0:05:45]} 28... Rc1+ {[%clk 0:13:17]} 29. Kh2 {[%clk 0:06:10]} 29... Kf7
{[%clk 0:13:09]} 30. Re2 {[%clk 0:03:14]} 30... Ke7 {[%clk 0:07:24]} 31. Rd2
{[%clk 0:02:19]} 31... Kd6 {[%clk 0:06:16]} 32. Kg3 {[%clk 0:02:19]} 32... Kd5
{[%clk 0:06:21]} 33. Kf3 {[%clk 0:02:05]} 33... b5 {[%clk 0:06:04]} 34. Ke3
{[%clk 0:01:20]} 34... Rc3+ {[%clk 0:06:03]} 35. Ke2 {[%clk 0:01:08]} 35... a5
{[%clk 0:06:14]} 36. f3 {[%clk 0:00:46]} 36... h5 {[%clk 0:05:48]} 37. Kf2
{[%clk 0:00:48]} 37... a4 {[%clk 0:04:47]} 38. bxa4 {[%clk 0:00:54]} 38... bxa4
{[%clk 0:05:16]} 39. Ke2 {[%clk 0:00:38]} 39... a3 {[%clk 0:05:10]} 40. Kf2
{[%clk 0:00:52]} 40... h4 {[%clk 0:05:12]} 41. Ke2 {[%clk 0:01:12]} 41... g5
{[%clk 0:05:14]} 42. Kf2 {[%clk 0:01:31]} 42... Rc4 {[%clk 0:04:55]} 43. Ke3
{[%clk 0:00:36]} 43... Rc3+ {[%clk 0:03:49]} 44. Ke2 {[%clk 0:01:02]} 44... f5
{[%clk 0:04:00]} 45. Kf2 {[%clk 0:01:26]} 45... Rc4 {[%clk 0:04:02]} 46. Ke3
{[%clk 0:00:42]} 46... Rb4 {[%clk 0:04:19]} 47. Rd3 {[%clk 0:00:42]} 47... f4+
{[%clk 0:04:35]} 48. Ke2 {[%clk 0:00:31]} 48... Rb2+ {[%clk 0:04:52]} 49. Kf1
{[%clk 0:00:31]} 49... Rxa2 {[%clk 0:05:07]} 50. Rb3 {[%clk 0:00:31]} 50... Kc4
{[%clk 0:05:06]} 51. Rb8 {[%clk 0:00:31]} 51... Rb2 {[%clk 0:05:26]} 52. Rc8+
{[%clk 0:00:51]} 52... Kd3 {[%clk 0:05:49]} 0-1

[Variant "Standard"]
[Site "Europe Echecs"]

[Event "Championnat du monde jeunes U10"]
[Date "2024.11.24"]
[White "Wang, Rocky"]
[Black "Lee, Yugeon"]
[WhiteElo "1853"]
[BlackElo "1690"]
[Round "9.36"]
[Result "1-0"]
[TimeControl "5400+30"]

1. e4 {[%clk 1:31:26]} 1... e5 {[%clk 1:29:15]} 2. Nf3 {[%clk 1:31:50]} 2... Nc6
{[%clk 1:29:23]} 3. Bb5 {[%clk 1:31:57]} 3... a6 {[%clk 1:29:40]} 4. Ba4 {[%clk
1:32:15]} 4... Nf6 {[%clk 1:29:48]} 5. O-O {[%clk 1:31:59]} 5... Be7 {[%clk
1:30:07]} 6. Re1 {[%clk 1:31:51]} 6... b5 {[%clk 1:29:47]} 7. Bb3 {[%clk
1:32:15]} 7... O-O {[%clk 1:29:37]} 8. c3 {[%clk 1:31:59]} 8... Na5 {[%clk
1:24:47]} 9. Nxe5 {[%clk 1:25:56]} 9... Nxb3 {[%clk 1:25:10]} 10. axb3 {[%clk
1:26:20]} 10... Bb7 {[%clk 1:25:24]} 11. d3 {[%clk 1:25:25]} 11... d5 {[%clk
1:24:44]} 12. exd5 {[%clk 1:06:43]} 12... Qxd5 {[%clk 1:23:49]} 13. Qf3 {[%clk
1:05:48]} 13... Rfd8 {[%clk 1:16:24]} 14. Bf4 {[%clk 0:56:22]} 14... Qxf3 {[%clk
1:02:11]} 15. Nxf3 {[%clk 0:56:33]} 15... Rxd3 {[%clk 1:02:33]} 16. Bxc7 {[%clk
0:51:07]} 16... Bxf3 {[%clk 0:54:16]} 17. gxf3 {[%clk 0:51:30]} 17... Bc5 {[%clk
0:51:44]} 18. b4 {[%clk 0:47:47]} 18... Bf8 {[%clk 0:10:35]} 19. Na3 {[%clk
0:41:49]} 19... Rc8 {[%clk 0:08:33]} 20. Bg3 {[%clk 0:40:02]} 20... Rxf3 {[%clk
0:00:45]} 21. Nc2 {[%clk 0:40:16]} 21... Rd3 {[%clk 0:00:48]} 22. Rxa6 {[%clk
0:40:12]} 22... Rd2 {[%clk 0:00:38]} 23. Nd4 {[%clk 0:39:39]} 23... Rxb2 {[%clk
0:00:37]} 24. Nxb5 {[%clk 0:39:26]} 24... Nd5 {[%clk 0:00:57]} 25. Be5 {[%clk
0:38:52]} 25... Re8 {[%clk 0:00:40]} 26. Raa1 {[%clk 0:35:22]} 26... Rb3 {[%clk
0:00:34]} 27. Rad1 {[%clk 0:33:07]} 27... Nb6 {[%clk 0:00:32]} 28. Bd4 {[%clk
0:29:48]} 28... Rxe1+ {[%clk 0:00:39]} 29. Rxe1 {[%clk 0:30:12]} 29... Nd5
{[%clk 0:00:48]} 30. Bc5 {[%clk 0:28:18]} 30... Bxc5 {[%clk 0:00:32]} 31. bxc5
{[%clk 0:28:41]} 31... g6 {[%clk 0:00:38]} 32. c6 {[%clk 0:28:08]} 32... Rxb5
{[%clk 0:00:31]} 33. c4 {[%clk 0:28:33]} 1-0

[Variant "Standard"]
[Site "Europe Echecs"]

[Event "Championnat du monde jeunes U10"]
[Date "2024.11.24"]
[White "Makhsatuly, Rakhim"]
[Black "Nikitakis, Michail"]
[WhiteElo "1683"]
[BlackElo "1818"]
[Round "9.37"]
[Result "0-1"]
[TimeControl "5400+30"]

1. e4 {[%clk 1:30:59]} 1... c5 {[%clk 1:30:56]} 2. Nf3 {[%clk 1:29:42]} 2... e6
{[%clk 1:31:22]} 3. d4 {[%clk 1:30:03]} 3... cxd4 {[%clk 1:31:48]} 4. Nxd4
{[%clk 1:30:29]} 4... Nc6 {[%clk 1:32:13]} 5. g3 {[%clk 1:30:04]} 5... d5 {[%clk
1:32:33]} 6. Nxc6 {[%clk 1:29:34]} 6... bxc6 {[%clk 1:32:50]} 7. Bg2 {[%clk
1:29:59]} 7... Ba6 {[%clk 1:20:58]} 8. Nc3 {[%clk 1:28:36]} 8... Qf6 {[%clk
1:12:39]} 9. Ne2 {[%clk 1:14:07]} 9... Bc5 {[%clk 0:52:14]} 10. O-O {[%clk
1:01:08]} 10... Ne7 {[%clk 0:47:55]} 11. c3 {[%clk 1:00:59]} 11... O-O {[%clk
0:45:04]} 12. Bd2 {[%clk 0:53:05]} 12... Rad8 {[%clk 0:29:51]} 13. b4 {[%clk
0:44:02]} 13... Bb6 {[%clk 0:28:49]} 14. a4 {[%clk 0:43:50]} 14... dxe4 {[%clk
0:27:00]} 15. Bxe4 {[%clk 0:44:10]} 15... Qe5 {[%clk 0:25:57]} 16. Bf3 {[%clk
0:44:30]} 16... Qf5 {[%clk 0:23:17]} 17. Kg2 {[%clk 0:42:58]} 17... e5 {[%clk
0:21:43]} 18. h3 {[%clk 0:27:23]} 18... Rd3 {[%clk 0:19:00]} 19. Bg4 {[%clk
0:24:46]} 19... Qe4+ {[%clk 0:19:25]} 20. f3 {[%clk 0:22:23]} 20... Qd5 {[%clk
0:19:04]} 21. b5 {[%clk 0:17:20]} 21... Rxd2 {[%clk 0:19:17]} 22. Qe1 {[%clk
0:17:49]} 22... cxb5 {[%clk 0:16:32]} 23. Rd1 {[%clk 0:17:14]} 23... Rxd1 {[%clk
0:16:45]} 24. Qxd1 {[%clk 0:17:41]} 24... Qxd1 {[%clk 0:17:07]} 25. Rxd1 {[%clk
0:18:06]} 25... f5 {[%clk 0:17:20]} 26. Bh5 {[%clk 0:18:33]} 26... g6 {[%clk
0:17:42]} 27. Rd7 {[%clk 0:18:56]} 27... Kf7 {[%clk 0:16:37]} 28. a5 {[%clk
0:19:21]} 28... Ke6 {[%clk 0:16:27]} 29. Rd1 {[%clk 0:19:42]} 29... Bc5 {[%clk
0:16:26]} 30. Bxg6 {[%clk 0:20:09]} 30... hxg6 {[%clk 0:16:46]} 31. g4 {[%clk
0:20:36]} 31... fxg4 {[%clk 0:17:10]} 32. hxg4 {[%clk 0:21:02]} 32... Nd5 {[%clk
0:17:27]} 33. Rh1 {[%clk 0:21:01]} 33... Nf4+ {[%clk 0:14:30]} 34. Nxf4+ {[%clk
0:21:22]} 34... Rxf4 {[%clk 0:14:48]} 35. Rh7 {[%clk 0:21:44]} 35... Rf7 {[%clk
0:14:50]} 36. Rxf7 {[%clk 0:22:11]} 36... Kxf7 {[%clk 0:15:11]} 37. Kg3 {[%clk
0:22:40]} 37... b4 {[%clk 0:15:28]} 38. cxb4 {[%clk 0:22:56]} 38... Bxb4 {[%clk
0:15:45]} 39. f4 {[%clk 0:23:26]} 39... exf4+ {[%clk 0:16:06]} 40. Kxf4 Bxa5
{[%clk 0:16:31]} 41. Ke5 {[%clk 0:24:14]} 41... Bc7+ {[%clk 0:16:53]} 42. Kd5
{[%clk 0:24:39]} 42... Bb7+ {[%clk 0:17:19]} 43. Kc5 {[%clk 0:25:05]} 43... a5
{[%clk 0:17:36]} 44. Kb5 {[%clk 0:25:30]} 44... Bc6+ {[%clk 0:17:54]} 45. Kxc6
{[%clk 0:25:59]} 45... a4 {[%clk 0:18:16]} 46. Kxc7 {[%clk 0:26:25]} 46... a3
47. Kc6 {[%clk 0:26:52]} 47... a2 {[%clk 0:19:09]} 48. g5 {[%clk 0:27:15]} 48...
a1=Q {[%clk 0:19:25]} 49. Kd5 {[%clk 0:27:44]} 49... Qa5+ {[%clk 0:19:48]} 50.
Kd6 {[%clk 0:28:01]} 50... Qxg5 {[%clk 0:20:12]} 51. Kc6 {[%clk 0:28:28]} 51...
Qf6+ {[%clk 0:20:36]} 52. Kb5 {[%clk 0:28:44]} 52... g5 {[%clk 0:21:02]} 53. Ka5
{[%clk 0:29:10]} 53... g4 {[%clk 0:21:27]} 54. Kb5 g3 {[%clk 0:21:47]} 55. Ka5
g2 {[%clk 0:22:12]} 56. Kb5 {[%clk 0:30:33]} 56... g1=Q {[%clk 0:22:29]} 57. Ka5
Qc5+ {[%clk 0:23:14]} 58. Ka4 {[%clk 0:32:00]} 58... Qfd4+ {[%clk 0:23:31]} 59.
Kb3 {[%clk 0:32:25]} 59... Qdb4+ {[%clk 0:23:55]} 60. Ka2 {[%clk 0:32:51]} 60...
Qa7# {[%clk 0:24:22]} 0-1

[Variant "Standard"]
[Site "Europe Echecs"]

[Event "Championnat du monde jeunes U10"]
[Date "2024.11.24"]
[White "Kovacs, Balazs"]
[Black "Megagiannis, Maximos"]
[WhiteElo "1800"]
[BlackElo "1682"]
[Round "9.38"]
[Result "1-0"]
[TimeControl "5400+30"]

1. e4 {[%clk 1:30:58]} 1... c6 {[%clk 1:30:44]} 2. d4 {[%clk 1:31:23]} 2... d5
{[%clk 1:31:05]} 3. Nc3 {[%clk 1:31:24]} 3... dxe4 {[%clk 1:31:21]} 4. Nxe4
{[%clk 1:31:46]} 4... Nf6 {[%clk 1:31:41]} 5. Qd3 {[%clk 1:32:07]} 5... Nxe4
{[%clk 1:31:51]} 6. Qxe4 {[%clk 1:32:24]} 6... Qd5 {[%clk 1:32:11]} 7. Qxd5
{[%clk 1:32:35]} 7... cxd5 {[%clk 1:32:32]} 8. Nf3 {[%clk 1:32:25]} 8... Bf5
{[%clk 1:30:18]} 9. c3 {[%clk 1:32:06]} 9... Nc6 {[%clk 1:29:01]} 10. Bb5 {[%clk
1:22:31]} 10... a6 {[%clk 1:26:37]} 11. Ba4 {[%clk 1:17:23]} 11... b5 {[%clk
1:24:34]} 12. Bb3 {[%clk 1:17:21]} 12... e6 {[%clk 1:24:51]} 13. a4 {[%clk
1:15:56]} 13... Na5 {[%clk 1:17:48]} 14. Bd1 {[%clk 1:14:34]} 14... b4 {[%clk
1:14:09]} 15. O-O {[%clk 1:07:39]} 15... Rc8 {[%clk 1:07:15]} 16. Be2 {[%clk
0:35:56]} 16... Nb3 {[%clk 0:58:20]} 17. Bxa6 {[%clk 0:35:26]} 17... Ra8 {[%clk
0:54:43]} 18. Bb5+ {[%clk 0:33:25]} 18... Ke7 {[%clk 0:53:10]} 19. Ra2 {[%clk
0:32:54]} 19... Rc8 {[%clk 0:48:59]} 20. a5 {[%clk 0:17:45]} 20... f6 {[%clk
0:42:37]} 21. a6 {[%clk 0:15:12]} 21... Bb1 {[%clk 0:41:30]} 22. Ra4 {[%clk
0:15:28]} 22... Bc2 {[%clk 0:39:52]} 23. a7 {[%clk 0:14:44]} 23... Nxd4 {[%clk
0:38:48]} 24. a8=Q {[%clk 0:12:50]} 24... Rxa8 {[%clk 0:39:06]} 25. Rxa8 {[%clk
0:13:11]} 25... Nxb5 {[%clk 0:39:25]} 26. cxb4 {[%clk 0:13:09]} 26... g5 {[%clk
0:37:48]} 27. Be3 {[%clk 0:11:41]} 27... Be4 {[%clk 0:35:44]} 28. Rb8 {[%clk
0:07:29]} 28... Nd6 {[%clk 0:34:16]} 29. Ra1 {[%clk 0:06:53]} 1-0

[Variant "Standard"]
[Site "Europe Echecs"]

[Event "Championnat du monde jeunes U10"]
[Date "2024.11.24"]
[White "Czech, Emil"]
[Black "Guntaka, Aayansh"]
[WhiteElo "1608"]
[BlackElo "1798"]
[Round "9.39"]
[Result "0-1"]
[TimeControl "5400+30"]

1. e4 {[%clk 1:30:58]} 1... c5 {[%clk 1:30:56]} 2. Nc3 {[%clk 1:31:23]} 2... g6
{[%clk 1:30:34]} 3. f4 {[%clk 1:31:26]} 3... Nc6 {[%clk 1:30:58]} 4. Nf3 {[%clk
1:31:45]} 4... Bg7 {[%clk 1:31:17]} 5. a4 {[%clk 1:32:03]} 5... e6 {[%clk
1:30:15]} 6. e5 {[%clk 1:31:47]} 6... d6 {[%clk 1:30:03]} 7. Bb5 {[%clk
1:26:20]} 7... d5 {[%clk 1:28:10]} 8. O-O {[%clk 1:22:13]} 8... Ne7 {[%clk
1:28:23]} 9. d4 {[%clk 1:10:29]} 9... cxd4 {[%clk 1:28:23]} 10. Nxd4 {[%clk
1:10:51]} 10... a6 {[%clk 1:28:47]} 11. Bxc6+ {[%clk 1:11:04]} 11... bxc6 {[%clk
1:28:45]} 12. a5 {[%clk 1:10:22]} 12... c5 {[%clk 1:23:25]} 13. Nb3 {[%clk
1:10:30]} 13... c4 {[%clk 1:23:06]} 14. Nd4 {[%clk 1:09:22]} 14... Rb8 {[%clk
1:22:30]} 15. Qe1 {[%clk 1:07:02]} 15... Bd7 {[%clk 1:22:26]} 16. Rf3 {[%clk
0:57:35]} 16... Nc6 {[%clk 1:21:53]} 17. Nxc6 {[%clk 0:57:36]} 17... Bxc6 {[%clk
1:19:38]} 18. Rg3 {[%clk 0:56:14]} 18... Bf8 {[%clk 1:18:05]} 19. Nd1 {[%clk
0:42:19]} 19... Be7 {[%clk 1:15:21]} 20. Rh3 {[%clk 0:42:36]} 20... d4 {[%clk
1:15:05]} 21. Qg3 {[%clk 0:34:22]} 21... Be4 {[%clk 1:12:21]} 22. c3 {[%clk
0:19:51]} 22... Bf5 {[%clk 1:12:42]} 23. Rh6 {[%clk 0:19:59]} 23... Kf8 {[%clk
1:12:59]} 24. cxd4 {[%clk 0:18:30]} 24... Kg7 {[%clk 1:12:01]} 25. Rh5 {[%clk
0:18:10]} 25... h6 {[%clk 1:12:01]} 26. Rxf5 {[%clk 0:17:02]} 26... exf5 {[%clk
1:11:23]} 27. Qf2 {[%clk 0:14:53]} 27... Rb5 {[%clk 1:07:16]} 28. Bd2 {[%clk
0:15:09]} 28... Rd5 {[%clk 1:07:30]} 29. Be3 {[%clk 0:14:35]} 29... Bb4 {[%clk
1:06:49]} 30. Qc2 {[%clk 0:13:31]} 30... Rxa5 {[%clk 1:05:22]} 31. Rxa5 {[%clk
0:13:02]} 31... Qxa5 {[%clk 1:04:24]} 32. Qxc4 {[%clk 0:13:01]} 32... Bd2 {[%clk
1:03:05]} 33. Qc6 {[%clk 0:11:13]} 33... Qa1 {[%clk 1:02:31]} 34. Qf6+ {[%clk
0:09:21]} 34... Kg8 {[%clk 1:02:35]} 35. Kf2 {[%clk 0:07:16]} 35... Qxd1 {[%clk
1:02:52]} 36. Bxd2 {[%clk 0:06:55]} 36... Qxd2+ {[%clk 1:03:14]} 37. Kf3 {[%clk
0:06:39]} 37... g5 {[%clk 1:02:25]} 38. Qd8+ {[%clk 0:05:34]} 38... Kh7 {[%clk
1:02:49]} 39. Qd7 {[%clk 0:05:29]} 39... g4+ {[%clk 1:03:12]} 0-1

[Variant "Standard"]
[Site "Europe Echecs"]

[Event "Championnat du monde jeunes U10"]
[Date "2024.11.24"]
[White "Neuschild, Marius"]
[Black "Mitrovic, Vasilije"]
[WhiteElo "1786"]
[BlackElo "1590"]
[Round "9.40"]
[Result "1-0"]
[TimeControl "5400+30"]

1. e4 {[%clk 1:30:59]} 1... e5 {[%clk 1:27:38]} 2. Nf3 {[%clk 1:31:21]} 2... Nc6
{[%clk 1:26:54]} 3. Bb5 {[%clk 1:31:43]} 3... a6 {[%clk 1:26:04]} 4. Ba4 {[%clk
1:32:11]} 4... Nf6 {[%clk 1:21:35]} 5. Nc3 {[%clk 1:32:19]} 5... d6 {[%clk
1:05:46]} 6. O-O {[%clk 1:29:31]} 6... Bg4 {[%clk 0:59:29]} 7. Bxc6+ {[%clk
1:11:47]} 7... bxc6 {[%clk 0:59:37]} 8. h3 {[%clk 1:11:11]} 8... Bh5 {[%clk
0:56:59]} 9. d3 {[%clk 1:09:00]} 9... h6 {[%clk 0:53:20]} 10. g4 {[%clk
1:03:42]} 10... Bg6 {[%clk 0:52:43]} 11. Ne2 {[%clk 1:02:23]} 11... Be7 {[%clk
0:48:36]} 12. Ng3 {[%clk 1:02:51]} 12... h5 {[%clk 0:39:17]} 13. g5 {[%clk
1:02:44]} 13... Nd7 {[%clk 0:36:59]} 14. Nf5 {[%clk 0:53:31]} 14... Rg8 {[%clk
0:33:29]} 15. Nxe7 {[%clk 0:37:17]} 15... Qxe7 {[%clk 0:33:32]} 16. Nh4 {[%clk
0:37:37]} 16... Qe6 {[%clk 0:29:18]} 17. Kh2 {[%clk 0:35:15]} 17... Rh8 {[%clk
0:26:33]} 18. b3 {[%clk 0:29:01]} 18... Nb6 {[%clk 0:21:03]} 19. Bb2 {[%clk
0:28:37]} 19... f5 {[%clk 0:14:42]} 20. f4 {[%clk 0:21:51]} 20... fxe4 {[%clk
0:12:23]} 21. f5 {[%clk 0:21:27]} 21... Bxf5 {[%clk 0:10:04]} 22. Nxf5 {[%clk
0:21:55]} 22... Qd7 {[%clk 0:08:57]} 23. dxe4 {[%clk 0:21:24]} 23... g6 {[%clk
0:06:49]} 24. Nh4 {[%clk 0:20:57]} 24... Rg8 {[%clk 0:06:09]} 25. Rf6 {[%clk
0:17:59]} 25... Qh7 {[%clk 0:05:53]} 26. Qf3 {[%clk 0:15:01]} 26... Rc8 {[%clk
0:05:28]} 27. Rf1 {[%clk 0:13:54]} 27... Qg7 {[%clk 0:04:53]} 28. Rxg6 {[%clk
0:11:13]} 28... Qh7 {[%clk 0:04:58]} 29. Rxg8+ {[%clk 0:11:31]} 29... Qxg8
{[%clk 0:05:22]} 30. Qxh5+ {[%clk 0:11:51]} 30... Kd8 {[%clk 0:04:52]} 31. Qg6
{[%clk 0:10:10]} 31... Qh8 {[%clk 0:04:52]} 32. Qf6+ {[%clk 0:09:38]} 32... Qxf6
{[%clk 0:04:50]} 33. gxf6 {[%clk 0:09:48]} 33... Nd7 {[%clk 0:05:00]} 34. Ng6
{[%clk 0:09:53]} 34... Nxf6 {[%clk 0:04:16]} 35. Rxf6 {[%clk 0:10:21]} 35... Kd7
{[%clk 0:04:34]} 36. Rf8 {[%clk 0:10:19]} 36... Rxf8 {[%clk 0:04:45]} 37. Nxf8+
{[%clk 0:10:47]} 37... Ke7 {[%clk 0:04:42]} 38. Ng6+ {[%clk 0:11:16]} 38... Kf7
{[%clk 0:04:47]} 39. Nxe5+ {[%clk 0:11:26]} 39... dxe5 {[%clk 0:05:05]} 40. Bxe5
{[%clk 0:11:54]} 40... Ke6 {[%clk 0:04:57]} 41. Bf4 {[%clk 0:12:14]} 41... Kd7
{[%clk 0:05:03]} 42. h4 {[%clk 0:12:36]} 42... Kd8 {[%clk 0:04:59]} 43. h5
{[%clk 0:13:01]} 43... Ke7 {[%clk 0:05:18]} 44. h6 {[%clk 0:13:18]} 44... Kf7
{[%clk 0:03:58]} 45. e5 {[%clk 0:13:24]} 45... c5 {[%clk 0:03:50]} 46. Bg5
{[%clk 0:13:40]} 46... Ke6 {[%clk 0:04:08]} 47. Bf6 {[%clk 0:13:58]} 47... Kf7
{[%clk 0:04:21]} 48. h7 {[%clk 0:14:17]} 48... Ke6 {[%clk 0:04:45]} 49. h8=Q
{[%clk 0:14:40]} 49... Kd5 {[%clk 0:05:04]} 50. Qh4 {[%clk 0:14:53]} 50... Ke6
{[%clk 0:05:15]} 51. Kg3 {[%clk 0:15:11]} 51... Kd7 {[%clk 0:05:14]} 52. c4
{[%clk 0:15:27]} 52... Kc6 {[%clk 0:05:31]} 53. Qe4+ {[%clk 0:15:50]} 53... Kb6
{[%clk 0:05:46]} 54. Bd8 {[%clk 0:16:03]} 54... Ka5 {[%clk 0:05:52]} 55. Bxc7+
{[%clk 0:15:52]} 55... Kb4 {[%clk 0:06:14]} 56. Bb6 {[%clk 0:15:31]} 56... Ka3
{[%clk 0:06:04]} 57. Qc2 {[%clk 0:14:52]} 57... a5 {[%clk 0:06:11]} 58. Bxc5#
{[%clk 0:15:05]} 1-0

[Variant "Standard"]
[Site "Europe Echecs"]

[Event "Championnat du monde jeunes U10"]
[Date "2024.11.24"]
[White "Nguyen Minh"]
[Black "Vedrickas, Vytis"]
[WhiteElo "1760"]
[BlackElo "1642"]
[Round "9.41"]
[Result "1-0"]
[TimeControl "5400+30"]

1. d4 {[%clk 1:30:57]} 1... Nf6 {[%clk 1:30:18]} 2. c4 {[%clk 1:31:21]} 2... g6
{[%clk 1:30:35]} 3. Nf3 {[%clk 1:30:56]} 3... Bg7 {[%clk 1:28:12]} 4. Nc3 {[%clk
1:31:12]} 4... d5 {[%clk 1:28:27]} 5. Bf4 {[%clk 1:31:31]} 5... O-O {[%clk
1:28:34]} 6. e3 {[%clk 1:31:52]} 6... c5 {[%clk 1:28:45]} 7. dxc5 {[%clk
1:32:12]} 7... Qa5 {[%clk 1:27:25]} 8. Rc1 {[%clk 1:32:27]} 8... dxc4 {[%clk
1:27:40]} 9. Bxc4 {[%clk 1:32:45]} 9... Qxc5 {[%clk 1:27:51]} 10. Bb3 {[%clk
1:33:03]} 10... Qa5 {[%clk 1:27:56]} 11. O-O {[%clk 1:32:51]} 11... Nc6 {[%clk
1:27:54]} 12. h3 {[%clk 1:31:25]} 12... Bf5 {[%clk 1:28:06]} 13. Qe2 {[%clk
1:31:12]} 13... Ne4 {[%clk 1:26:52]} 14. Nd5 {[%clk 1:23:34]} 14... Rfd8 {[%clk
1:12:54]} 15. Bc7 {[%clk 1:21:34]} 15... b6 {[%clk 1:10:43]} 16. Bxd8 {[%clk
1:19:49]} 16... Nxd8 {[%clk 1:10:43]} 17. Nxe7+ {[%clk 1:19:56]} 17... Kh8
{[%clk 1:10:49]} 18. Rfd1 {[%clk 1:19:32]} 18... Ne6 {[%clk 1:03:50]} 19. Nc6
{[%clk 1:19:01]} 19... Qc5 {[%clk 1:00:57]} 20. Rxc5 {[%clk 1:19:05]} 20...
N6xc5 {[%clk 1:01:14]} 21. Bxf7 {[%clk 1:18:50]} 21... Rf8 {[%clk 1:00:45]} 22.
Nfe5 {[%clk 1:17:33]} 22... Ng5 {[%clk 0:57:45]} 23. Qc4 {[%clk 1:15:47]} 23...
Bf6 {[%clk 0:51:58]} 24. Bd5 {[%clk 1:13:35]} 24... Nge4 {[%clk 0:47:41]} 25.
Bxe4 {[%clk 1:13:22]} 25... Nxe4 {[%clk 0:46:12]} 26. g4 {[%clk 1:13:07]} 26...
Bxe5 {[%clk 0:45:23]} 27. Nxe5 {[%clk 1:13:22]} 27... Nxf2 {[%clk 0:45:42]} 28.
gxf5 {[%clk 1:13:06]} 28... Nxd1 {[%clk 0:46:02]} 29. Qd4 {[%clk 1:13:17]} 29...
Re8 {[%clk 0:44:34]} 30. Nf7+ {[%clk 1:13:15]} 30... Kg8 {[%clk 0:44:46]} 31.
Nh6+ {[%clk 1:13:37]} 1-0

[Variant "Standard"]
[Site "Europe Echecs"]